bitfinex/quotes_BTCUSD_20250908
["timestamp","ask_amount","ask_price","bid_price","bid_amount"]
[1757367847889,0.3892121,112260.0,112250.0,0.21704]
[1757367848117,0.78874665,112260.0,112250.0,0.21704]
[1757367850775,0.78874665,112260.0,112250.0,0.06836]
[1757367850985,0.78874665,112260.0,112250.0,0.21692]
[1757367851405,0.78874665,112260.0,112250.0,0.06836]
[1757367851602,0.78874665,112260.0,112250.0,0.21692]
[1757367854603,0.7974523,112260.0,112250.0,0.21692]
[1757367855494,0.78874665,112260.0,112250.0,0.21692]
[1757367858461,0.78919347,112260.0,112250.0,0.21684]
[1757367863195,1.18917484,112260.0,112250.0,0.06836]
[1757367863411,1.18917484,112260.0,112250.0,0.2168]
[1757367864563,1.18917484,112260.0,112250.0,0.06836]
[1757367864779,1.18917484,112260.0,112250.0,0.2168]
[1757367873976,1.18917484,112260.0,112250.0,0.06836]
[1757367874175,1.18917484,112260.0,112250.0,0.21692]
[1757367876645,1.1879462,112260.0,112250.0,0.21692]
[1757367890597,1.1879462,112260.0,112250.0,0.06836]
[1757367890803,1.1879462,112260.0,112250.0,0.21684]
[1757367894828,1.1879462,112260.0,112250.0,0.06836]
[1757367895015,1.1879462,112260.0,112250.0,0.2168]
[1757367900346,1.1879462,112260.0,112250.0,0.06836]
[1757367900541,1.1879462,112260.0,112250.0,0.21672]
[1757367900542,0.38798346,112260.0,112250.0,0.21672]
[1757367900748,1.1879462,112260.0,112250.0,0.21672]
[1757367902077,0.38798346,112260.0,112250.0,0.21672]
[1757367902257,1.1879462,112260.0,112250.0,0.21672]
[1757367904261,0.38798346,112260.0,112250.0,0.21672]
[1757367904466,1.1879462,112260.0,112250.0,0.21672]
[1757367908259,1.1879462,112260.0,112250.0,0.2168]
[1757367908703,1.1647262,112260.0,112250.0,0.2168]
[1757367910295,0.36476346,112260.0,112250.0,0.2168]
[1757367910520,1.1647262,112260.0,112250.0,0.2168]
[1757367913828,1.5047262,112260.0,112250.0,0.2168]
[1757367916173,1.5047262,112260.0,112250.0,0.06836]
[1757367916376,1.5285362,112260.0,112250.0,0.21672]
[1757367919064,0.72857346,112260.0,112250.0,0.21672]
[1757367919293,1.5285362,112260.0,112250.0,0.21672]
[1757367920380,1.12859779,112260.0,112250.0,0.21672]
[1757367920790,0.72857346,112260.0,112250.0,0.21672]
[1757367921022,1.12859779,112260.0,112250.0,0.21672]
[1757367921450,1.12859779,112260.0,112220.0,0.33187986]
[1757367921451,0.17819909,112240.0,112220.0,0.33187986]
[1757367921651,0.27289929,112240.0,112230.0,0.07037]
[1757367921828,0.27011508,112240.0,112230.0,0.07037]
[1757367922028,0.27212508,112240.0,112230.0,0.07037]
[1757367922540,0.27212508,112240.0,112230.0,0.21869]
[1757367923348,0.27512508,112240.0,112230.0,0.21869]
[1757367923724,0.27512508,112240.0,112230.0,0.21872]
[1757367924256,0.27512508,112240.0,112230.0,0.24645879]
[1757367924384,0.27512508,112240.0,112230.0,0.24842879]
[1757367925727,0.27512508,112240.0,112230.0,0.22169]
[1757367925937,0.27512508,112240.0,112230.0,0.21972]
[1757367927284,0.30186387,112240.0,112230.0,0.21972]
[1757367927631,0.30186387,112240.0,112230.0,0.22169]
[1757367929427,0.30186387,112240.0,112230.0,0.23169]
[1757367929608,0.30186387,112240.0,112230.0,0.47366423]
[1757367930055,0.30186387,112240.0,112230.0,0.32014755]
[1757367930278,0.27512508,112240.0,112230.0,0.25637879]
[1757367930922,0.27512508,112240.0,112230.0,0.25633879]
[1757367931131,0.27512508,112240.0,112230.0,0.2296]
[1757367931331,0.27512508,112240.0,112230.0,0.25633902]
[1757367931686,0.27512508,112240.0,112230.0,0.10813902]
[1757367931860,0.27512508,112240.0,112230.0,0.25637902]
[1757367932073,0.27512508,112240.0,112230.0,0.2296]
[1757367932832,0.30186478,112240.0,112230.0,0.2296]
[1757367933353,0.27512508,112240.0,112230.0,0.2296]
[1757367934223,0.27010558,112240.0,112230.0,0.41276547]
[1757367934437,0.27010558,112240.0,112230.0,0.47653423]
[1757367934647,0.09191599,112240.0,112230.0,0.50327324]
[1757367934855,0.0947002,112240.0,112230.0,0.50327324]
[1757367935237,0.09191599,112240.0,112230.0,0.50327324]
[1757367936810,0.09126187,112240.0,112230.0,0.50327324]
[1757367939391,0.09404608,112240.0,112230.0,0.50327324]
[1757367941614,0.27223567,112240.0,112230.0,0.35507324]
[1757367941797,0.26945146,112240.0,112230.0,0.32506777]
[1757367942091,0.26945146,112240.0,112230.0,0.26129901]
[1757367942313,0.26945146,112240.0,112230.0,0.43950448]
[1757367942745,0.26945146,112240.0,112230.0,0.43750448]
[1757367958545,0.27152146,112240.0,112230.0,0.43750448]
[1757367959228,0.27152146,112240.0,112230.0,0.25929901]
[1757367962629,0.27152146,112240.0,112230.0,0.32306777]
[1757367964498,0.27451146,112240.0,112230.0,0.32007777]
[1757367964749,0.27451146,112240.0,112230.0,0.31810777]
[1757367965114,0.27451146,112240.0,112230.0,0.32012777]
[1757367965335,0.27152146,112240.0,112230.0,0.32012777]
[1757367966725,0.27152146,112240.0,112230.0,0.32323777]
[1757367968171,0.27152146,112240.0,112230.0,0.32012777]
[1757367972527,0.27152146,112240.0,112230.0,0.32008777]
[1757367973661,0.27152146,112240.0,112230.0,0.49829324]
[1757367977496,0.27461146,112240.0,112230.0,0.49829324]
[1757367978749,0.27152146,112240.0,112230.0,0.49829324]
[1757367978868,0.27152146,112240.0,112230.0,0.50138324]
[1757367979127,0.27152146,112240.0,112230.0,0.49829324]
[1757367981149,0.27152146,112240.0,112230.0,0.32008777]
[1757367983561,0.27152146,112240.0,112230.0,0.50138324]
[1757367984319,0.27152146,112240.0,112230.0,0.49829324]
[1757367985380,0.27152146,112240.0,112230.0,0.50138324]
[1757367991372,0.27152146,112240.0,112230.0,0.35322324]
[1757367991554,0.27152146,112240.0,112230.0,0.50138324]
[1757367992790,0.27152146,112240.0,112230.0,0.49829324]
[1757367992966,0.27461146,112240.0,112230.0,0.32008777]
[1757367994707,0.27461146,112240.0,112230.0,0.31806777]
[1757367995207,0.27461146,112240.0,112230.0,0.32010777]
[1757367996965,0.27152146,112240.0,112230.0,0.32010777]
[1757367997936,0.27152146,112240.0,112230.0,0.49831324]
[1757367998139,0.27152146,112240.0,112230.0,0.50140324]
[1757368008148,0.27152146,112240.0,112230.0,0.35324324]
[1757368008286,0.27152146,112240.0,112230.0,0.50136324]
[1757368014016,0.26945146,112240.0,112230.0,0.50136324]
[1757368016065,0.26945146,112240.0,112230.0,0.35324324]
[1757368016275,0.26945146,112240.0,112230.0,0.50136324]
[1757368022996,0.27149146,112240.0,112230.0,0.35015324]
[1757368023205,0.27450146,112240.0,112230.0,0.49827324]
[1757368023412,0.27149146,112240.0,112230.0,0.50132324]
[1757368029184,0.26945146,112240.0,112230.0,0.50132324]
[1757368029593,0.09126187,112240.0,112230.0,0.50132324]
[1757368033603,0.09323187,112240.0,112230.0,0.50132324]
[1757368035510,0.09126187,112240.0,112230.0,0.50132324]
[1757368037822,0.09323187,112240.0,112230.0,0.50132324]
[1757368043030,0.09126187,112240.0,112230.0,0.50132324]
[1757368044445,0.09323187,112240.0,112230.0,0.50132324]
[1757368045640,0.09323187,112240.0,112230.0,0.49827324]
[1757368045992,0.09323187,112240.0,112230.0,0.50141324]
[1757368046605,0.09126187,112240.0,112230.0,0.50141324]
[1757368048880,0.09126187,112240.0,112230.0,0.35329324]
[1757368049098,0.09126187,112240.0,112230.0,0.50137324]
[1757368053240,0.09126187,112240.0,112230.0,0.35329324]
[1757368053451,0.09126187,112240.0,112230.0,0.50137324]
[1757368056641,0.09126187,112240.0,112230.0,0.58137324]
[1757368064630,0.09126187,112240.0,112230.0,0.43329324]
[1757368064843,0.09126187,112240.0,112230.0,0.58137324]
[1757368068415,0.09126187,112240.0,112230.0,0.43329324]
[1757368068612,0.09126187,112240.0,112230.0,0.58137324]
[1757368079826,0.09126187,112240.0,112230.0,0.50137324]
[1757368081579,0.09126187,112240.0,112230.0,0.58137324]
[1757368084674,0.09126187,112240.0,112230.0,0.59920324]
[1757368084855,0.09126187,112240.0,112230.0,0.58137324]
[1757368088433,0.09324187,112240.0,112230.0,0.58137324]
[1757368090380,0.09126187,112240.0,112230.0,0.58137324]
[1757368090678,0.09126187,112240.0,112230.0,0.50137324]
[1757368094120,0.09126187,112240.0,112230.0,0.35329324]
[1757368094749,0.09126187,112240.0,112230.0,0.50133324]
[1757368120109,0.09126187,112240.0,112230.0,0.58133324]
[1757368120638,0.09126187,112240.0,112230.0,0.50133324]
[1757368128968,0.02673969,112250.0,112240.0,0.17818959]
[1757368129205,0.51820575,112260.0,112250.0,0.17817371]
[1757368129483,0.60363655,112260.0,112250.0,0.00204]
[1757368129733,1.0066848,112260.0,112250.0,0.15004]
[1757368130237,1.0066848,112260.0,112250.0,0.29844]
[1757368130653,1.09860079,112260.0,112250.0,0.29844]
[1757368130878,0.69965254,112260.0,112250.0,0.29844]
[1757368131099,0.64293853,112260.0,112250.0,0.29844]
[1757368131750,1.04488678,112260.0,112250.0,0.2964]
[1757368132083,0.64493853,112260.0,112250.0,0.2964]
[1757368143302,0.64183853,112260.0,112250.0,0.29844]
[1757368144257,0.64493853,112260.0,112250.0,0.29844]
[1757368144480,0.73685452,112260.0,112250.0,0.2964]
[1757368144773,0.63985853,112260.0,112250.0,0.30151]
[1757368144974,0.64183853,112260.0,112250.0,0.30151]
[1757368145398,0.64183853,112260.0,112250.0,0.29844]
[1757368145521,0.64183853,112260.0,112250.0,0.2964]
[1757368145827,0.64493853,112260.0,112250.0,0.2964]
[1757368146030,0.73685452,112260.0,112250.0,0.2964]
[1757368147588,0.73375452,112260.0,112250.0,0.29844]
[1757368147795,0.64183853,112260.0,112250.0,0.29844]
[1757368148464,0.64493853,112260.0,112250.0,0.29844]
[1757368150911,0.64493853,112260.0,112250.0,0.2964]
[1757368152967,0.64493853,112260.0,112250.0,0.1484]
[1757368153202,0.64493853,112260.0,112250.0,0.29672]
[1757368153943,0.65900122,112260.0,112250.0,0.29672]
[1757368154144,0.65900122,112260.0,112250.0,0.2987]
[1757368154555,0.65900122,112260.0,112250.0,0.29672]
[1757368161162,0.64493853,112260.0,112250.0,0.2987]
[1757368161875,0.64493853,112260.0,112250.0,0.29672]
[1757368162196,0.64493853,112260.0,112250.0,0.2987]
[1757368162791,0.64493853,112260.0,112250.0,0.29672]
[1757368162980,0.64493853,112260.0,112250.0,0.1484]
[1757368163189,0.64493853,112260.0,112250.0,0.29664]
[1757368163391,0.67404499,112260.0,112250.0,0.29664]
[1757368163742,0.64493853,112260.0,112250.0,0.29664]
[1757368166124,0.64493853,112260.0,112250.0,0.29862]
[1757368166451,0.64493853,112260.0,112250.0,0.29664]
[1757368166658,0.64493853,112260.0,112250.0,0.29862]
[1757368169221,0.64493853,112260.0,112250.0,0.29664]
[1757368169429,0.64493853,112260.0,112250.0,0.29862]
[1757368170971,0.64183853,112260.0,112250.0,0.29862]
[1757368172189,0.64497853,112260.0,112250.0,0.29862]
[1757368172800,0.64497853,112260.0,112250.0,0.29664]
[1757368173404,0.64497853,112260.0,112250.0,0.29862]
[1757368175993,0.64497853,112260.0,112250.0,0.29664]
[1757368177403,0.64497853,112260.0,112250.0,0.29862]
[1757368179315,0.64497853,112260.0,112250.0,0.29664]
[1757368180040,0.64497853,112260.0,112250.0,0.29862]
[1757368181574,0.64497853,112260.0,112250.0,0.29664]
[1757368192776,0.64497853,112260.0,112250.0,0.1484]
[1757368192989,0.64497853,112260.0,112250.0,0.29656]
[1757368193882,0.65764792,112260.0,112250.0,0.29656]
[1757368194518,0.64497853,112260.0,112250.0,0.29656]
[1757368195486,0.64497853,112260.0,112250.0,0.1484]
[1757368195686,0.64497853,112260.0,112250.0,0.29664]
[1757368197283,0.64497853,112260.0,112250.0,0.30664]
[1757368206012,0.64497853,112260.0,112250.0,0.1584]
[1757368206231,0.64497853,112260.0,112250.0,0.30664]
[1757368208463,0.69178438,112260.0,112250.0,0.30664]
[1757368209685,0.64497853,112260.0,112250.0,0.30664]
[1757368209892,0.63985853,112260.0,112250.0,0.31177]
[1757368210100,0.64509853,112260.0,112250.0,0.30664]
[1757368212525,0.64509853,112260.0,112250.0,0.30872]
[1757368212751,0.64509853,112260.0,112250.0,0.30664]
[1757368213610,0.6733604,112260.0,112250.0,0.30664]
[1757368215474,0.6681204,112260.0,112250.0,0.30872]
[1757368216145,0.6700904,112260.0,112250.0,0.30872]
[1757368216357,0.6730604,112260.0,112250.0,0.30664]
[1757368217507,0.6730604,112260.0,112250.0,0.1584]
[1757368217713,0.6730604,112260.0,112250.0,0.30664]
[1757368220296,0.3330604,112260.0,112250.0,0.30664]
[1757368222077,0.30479853,112260.0,112250.0,0.30664]
[1757368224452,0.70471801,112260.0,112250.0,0.30664]
[1757368224630,0.70174801,112260.0,112250.0,0.30872]
[1757368224774,0.70471801,112260.0,112250.0,0.30872]
[1757368224976,0.30479853,112260.0,112250.0,0.30664]
[1757368225237,0.70471801,112260.0,112250.0,0.30664]
[1757368226008,0.30479853,112260.0,112250.0,0.30664]
[1757368226232,0.70471801,112260.0,112250.0,0.30664]
[1757368228043,0.70471801,112260.0,112250.0,0.30872]
[1757368228819,0.70471801,112260.0,112250.0,0.30664]
[1757368229163,0.70471801,112260.0,112250.0,0.30672]
[1757368230307,0.70174801,112260.0,112250.0,0.3088]
[1757368230835,0.70471801,112260.0,112250.0,0.3088]
[1757368231057,0.70471801,112260.0,112250.0,0.30672]
[1757368231277,0.796634,112260.0,112250.0,0.30672]
[1757368232153,0.70471801,112260.0,112250.0,0.30672]
[1757368233612,0.70471801,112260.0,112250.0,0.30668]
[1757368234900,0.30479853,112260.0,112250.0,0.30876]
[1757368235123,0.70471801,112260.0,112250.0,0.30876]
[1757368235870,0.70174801,112260.0,112250.0,0.31184]
[1757368238394,0.70174801,112260.0,112250.0,0.30876]
[1757368238593,0.70471801,112260.0,112250.0,0.30876]
[1757368238803,0.71964178,112260.0,112250.0,0.30668]
[1757368239339,0.71964178,112260.0,112250.0,0.30876]
[1757368239494,0.71667178,112260.0,112250.0,0.30876]
[1757368239905,0.71667178,112260.0,112250.0,0.31184]
[1757368240847,0.71667178,112260.0,112250.0,0.30876]
[1757368242105,0.71983178,112260.0,112250.0,0.30872]
[1757368242680,0.71667178,112260.0,112250.0,0.30872]
[1757368242876,0.71470178,112260.0,112250.0,0.31171]
[1757368243822,0.71673178,112260.0,112250.0,0.31171]
[1757368243978,0.70180801,112260.0,112250.0,0.31171]
[1757368247264,0.29985853,112260.0,112250.0,0.31171]
[1757368247473,0.69977801,112260.0,112250.0,0.31171]
[1757368247619,0.29985853,112260.0,112250.0,0.31171]
[1757368248576,0.29985853,112260.0,112250.0,0.16347]
[1757368248778,0.35856356,112260.0,112250.0,0.30872]
[1757368249278,0.75848304,112260.0,112250.0,0.30872]
[1757368249781,0.70180801,112260.0,112250.0,0.30872]
[1757368250999,0.70180801,112260.0,112250.0,0.31171]
[1757368251229,0.30188853,112260.0,112250.0,0.31171]
[1757368256716,0.30188853,112260.0,112250.0,0.30872]
[1757368257231,0.29985853,112260.0,112250.0,0.31171]
[1757368258811,0.30188853,112260.0,112250.0,0.31171]
[1757368259449,0.29985853,112260.0,112250.0,0.31164]
[1757368260762,0.30188853,112260.0,112250.0,0.31164]
[1757368262773,0.30188853,112260.0,112250.0,0.30865]
[1757368264022,0.30188853,112260.0,112250.0,0.31164]
[1757368264587,0.30188853,112260.0,112250.0,0.30865]
[1757368264809,0.30504853,112260.0,112250.0,0.30865]
[1757368264994,0.30188853,112260.0,112250.0,0.30865]
[1757368265718,0.30188853,112260.0,112250.0,0.16041]
[1757368265924,0.30504853,112260.0,112250.0,0.30652]
[1757368266248,0.30504853,112260.0,112250.0,0.30853]
[1757368266652,0.30188853,112260.0,112250.0,0.30853]
[1757368268476,0.30188853,112260.0,112250.0,0.31152]
[1757368268973,0.30188853,112260.0,112250.0,0.30853]
[1757368269132,0.30504853,112260.0,112250.0,0.30648]
[1757368269854,0.30504853,112260.0,112250.0,0.30849]
[1757368270740,0.30504853,112260.0,112250.0,0.30648]
[1757368271134,0.30504853,112260.0,112250.0,0.30857]
[1757368271541,0.30188853,112260.0,112250.0,0.30857]
[1757368272309,0.30188853,112260.0,112250.0,0.3117]
[1757368272521,0.30188853,112260.0,112250.0,0.30648]
[1757368272522,0.30506853,112260.0,112250.0,0.30648]
[1757368273067,0.30506853,112260.0,112250.0,0.30857]
[1757368273779,0.30188853,112260.0,112250.0,0.30857]
[1757368275143,0.30506853,112260.0,112250.0,0.30648]
[1757368275632,0.30506853,112260.0,112250.0,0.30857]
[1757368279619,0.30188853,112260.0,112250.0,0.30857]
[1757368280481,0.70180801,112260.0,112250.0,0.30857]
[1757368281002,0.30188853,112260.0,112250.0,0.30857]
[1757368282590,0.30506853,112260.0,112250.0,0.30857]
[1757368282737,0.30188853,112260.0,112250.0,0.30857]
[1757368284708,0.70180801,112260.0,112250.0,0.30857]
[1757368285212,0.70498801,112260.0,112250.0,0.30857]
[1757368285461,0.70498801,112260.0,112250.0,0.30648]
[1757368286342,0.70498801,112260.0,112250.0,0.30857]
[1757368286538,0.30506853,112260.0,112250.0,0.30857]
[1757368291290,0.30188853,112260.0,112250.0,0.30857]
[1757368291506,0.30188853,112260.0,112250.0,0.3117]
[1757368291915,0.30188853,112260.0,112250.0,0.30857]
[1757368292520,0.30188853,112260.0,112250.0,0.16049]
[1757368292823,0.30506853,112260.0,112250.0,0.30857]
[1757368294094,0.30506853,112260.0,112250.0,0.16049]
[1757368294318,0.30506853,112260.0,112250.0,0.30994796]
[1757368294571,0.30506853,112260.0,112250.0,0.30857]
[1757368294868,0.30188853,112260.0,112250.0,0.30857]
[1757368295090,0.30506853,112260.0,112250.0,0.30857]
[1757368295636,0.30506853,112260.0,112250.0,0.16049]
[1757368295855,0.30506853,112260.0,112250.0,0.30857]
[1757368296467,0.30506853,112260.0,112250.0,0.16049]
[1757368296643,0.30506853,112260.0,112250.0,0.30994796]
[1757368296997,0.30506853,112260.0,112250.0,0.30857]
[1757368297637,0.30506853,112260.0,112250.0,0.16049]
[1757368297875,0.30506853,112260.0,112250.0,0.30994796]
[1757368298109,0.30506853,112260.0,112250.0,0.30857]
[1757368298964,0.30188853,112260.0,112250.0,0.30857]
[1757368299597,0.3018868,112260.0,112250.0,0.30857]
[1757368300030,0.3018868,112260.0,112250.0,0.3117]
[1757368300288,0.2998568,112260.0,112250.0,0.3117]
[1757368300741,0.3018668,112260.0,112250.0,0.3117]
[1757368302220,0.3018668,112260.0,112250.0,0.30857]
[1757368302430,0.3049968,112260.0,112250.0,0.30857]
[1757368302638,0.3018668,112260.0,112250.0,0.31165]
[1757368307527,0.3018668,112260.0,112250.0,0.30857]
[1757368308899,0.3018668,112260.0,112250.0,0.31165]
[1757368309590,0.3049968,112260.0,112250.0,0.30857]
[1757368309771,0.3018668,112260.0,112250.0,0.30857]
[1757368309970,0.3018668,112260.0,112250.0,0.30798254]
[1757368310201,0.3018668,112260.0,112250.0,0.31106254]
[1757368311516,0.3018668,112260.0,112250.0,0.30798254]
[1757368312539,0.3018668,112260.0,112250.0,0.31106254]
[1757368313788,0.3018668,112260.0,112250.0,0.48923625]
[1757368314015,0.2998568,112260.0,112250.0,0.48923625]
[1757368314579,0.2998568,112260.0,112250.0,0.51597161]
[1757368316727,0.3018668,112260.0,112250.0,0.51597161]
[1757368316954,0.3018668,112260.0,112250.0,0.51289161]
[1757368317580,0.3018668,112260.0,112250.0,0.51597161]
[1757368317989,0.3018668,112260.0,112250.0,0.51289161]
[1757368318196,0.3049968,112260.0,112250.0,0.51080161]
[1757368318842,0.3049968,112260.0,112250.0,0.51294161]
[1757368319116,0.3049968,112260.0,112250.0,0.51080161]
[1757368319821,0.3049968,112260.0,112250.0,0.48406625]
[1757368325459,0.3018668,112260.0,112250.0,0.48620625]
[1757368325848,0.3049968,112260.0,112250.0,0.48620625]
[1757368326368,0.3049968,112260.0,112250.0,0.48406625]
[1757368331822,0.3049968,112260.0,112250.0,0.33598625]
[1757368332027,0.3049968,112260.0,112250.0,0.48418625]
[1757368334406,0.3049968,112260.0,112250.0,0.33598625]
[1757368334631,0.3049968,112260.0,112250.0,0.48418625]
[1757368338621,0.3049968,112260.0,112250.0,0.48626625]
[1757368345549,0.3049968,112260.0,112250.0,0.33806625]
[1757368345726,0.3049968,112260.0,112250.0,0.48618625]
[1757368350152,0.3049968,112260.0,112250.0,0.48410625]
[1757368353791,0.2998568,112260.0,112250.0,0.48913625]
[1757368354358,0.3019768,112260.0,112250.0,0.48913625]
[1757368357480,0.12169896,112260.0,112250.0,0.48913625]
[1757368357691,0.09774588,112260.0,112250.0,0.48913625]
[1757368358008,0.09774588,112260.0,112250.0,0.51587161]
[1757368358445,0.09774588,112260.0,112250.0,0.51591161]
[1757368358756,0.09774588,112260.0,112250.0,0.57968037]
[1757368358971,0.09986588,112260.0,112250.0,0.57968037]
[1757368359180,0.09986588,112260.0,112250.0,0.51591161]
[1757368359607,0.28101372,112260.0,112250.0,0.51092161]
[1757368359848,0.27823001,112260.0,112250.0,0.51092161]
[1757368361036,0.67813846,112260.0,112250.0,0.51092161]
[1757368361258,0.67813846,112260.0,112250.0,0.51308161]
[1757368363051,0.27823001,112260.0,112250.0,0.51308161]
[1757368366329,0.27823001,112260.0,112250.0,0.51092161]
[1757368366887,0.27823001,112260.0,112250.0,0.51308161]
[1757368370271,0.27823001,112260.0,112250.0,0.36272161]
[1757368370500,0.27823001,112260.0,112250.0,0.51092161]
[1757368371855,0.27823001,112260.0,112250.0,0.36272161]
[1757368372528,0.27823001,112260.0,112250.0,0.51088161]
[1757368375466,0.27823001,112260.0,112250.0,0.36272161]
[1757368375724,0.27823001,112260.0,112250.0,0.51088161]
[1757368377162,0.27823001,112260.0,112250.0,0.36272161]
[1757368377371,0.27823001,112260.0,112250.0,0.51088161]
[1757368380564,0.27823001,112260.0,112250.0,0.36272161]
[1757368380839,0.27823001,112260.0,112250.0,0.51084161]
[1757368389197,0.76733075,112260.0,112250.0,0.1845479]
[1757368389401,0.76733075,112260.0,112250.0,0.3326679]
[1757368389663,0.76733075,112260.0,112250.0,0.51084161]
[1757368389845,0.27823001,112260.0,112250.0,0.57461037]
[1757368390089,0.27823001,112260.0,112250.0,0.57677037]
[1757368390516,0.27524001,112260.0,112250.0,0.57979037]
[1757368394434,0.27312001,112260.0,112250.0,0.57979037]
[1757368394866,0.09496217,112260.0,112250.0,0.57979037]
[1757368395137,0.09774588,112260.0,112250.0,0.57979037]
[1757368396204,0.27590372,112260.0,112250.0,0.57979037]
[1757368396440,0.27312001,112260.0,112250.0,0.57979037]
[1757368405693,0.09496217,112260.0,112250.0,0.57979037]
[1757368405899,0.09774588,112260.0,112250.0,0.57979037]
[1757368406075,0.09985588,112260.0,112250.0,0.57979037]
[1757368406562,0.09774588,112260.0,112250.0,0.57979037]
[1757368407914,0.09985588,112260.0,112250.0,0.57979037]
[1757368408258,0.09774588,112260.0,112250.0,0.57979037]
[1757368410181,0.09985588,112260.0,112250.0,0.57979037]
[1757368410537,0.09774588,112260.0,112250.0,0.57979037]
[1757368414974,0.09985588,112260.0,112250.0,0.57979037]
[1757368416313,0.09774588,112260.0,112250.0,0.57979037]
[1757368418507,0.09985588,112260.0,112250.0,0.57979037]
[1757368419634,0.09985588,112260.0,112250.0,0.57677037]
[1757368420082,0.09985588,112260.0,112250.0,0.57979037]
[1757368421116,0.09774588,112260.0,112250.0,0.57979037]
[1757368421302,0.27590372,112260.0,112250.0,0.57979037]
[1757368421458,0.27312001,112260.0,112250.0,0.57979037]
[1757368424021,0.27512001,112260.0,112250.0,0.57979037]
[1757368424444,0.27512001,112260.0,112250.0,0.57677037]
[1757368425634,0.27812001,112260.0,112250.0,0.57677037]
[1757368426215,0.09996217,112260.0,112250.0,0.57677037]
[1757368426537,0.09974588,112260.0,112250.0,0.57980037]
[1757368426747,0.09774588,112260.0,112250.0,0.57980037]
[1757368426985,0.09974588,112260.0,112250.0,0.57980037]
[1757368427198,0.09974588,112260.0,112250.0,0.57677037]
[1757368427590,0.27790372,112260.0,112250.0,0.57677037]
[1757368427733,0.27512001,112260.0,112250.0,0.57677037]
[1757368429312,0.27512001,112260.0,112250.0,0.57980037]
[1757368429518,0.27512001,112260.0,112250.0,0.57677037]
[1757368429736,0.27812001,112260.0,112250.0,0.57461037]
[1757368430165,0.27812001,112260.0,112250.0,0.57669037]
[1757368430932,0.27512001,112260.0,112250.0,0.57669037]
[1757368433520,0.27512001,112260.0,112250.0,0.57461037]
[1757368433746,0.27812001,112260.0,112250.0,0.57461037]
[1757368434450,0.27812001,112260.0,112250.0,0.57669037]
[1757368434779,0.27512001,112260.0,112250.0,0.57669037]
[1757368435271,0.27812001,112260.0,112250.0,0.57669037]
[1757368437424,0.27812001,112260.0,112250.0,0.57461037]
[1757368442349,0.27812001,112260.0,112250.0,0.57669037]
[1757368443208,0.27512001,112260.0,112250.0,0.57669037]
[1757368443411,0.27512001,112260.0,112250.0,0.57972037]
[1757368443588,0.27512001,112260.0,112250.0,0.57669037]
[1757368444674,0.27812001,112260.0,112250.0,0.57669037]
[1757368445563,0.27312001,112260.0,112250.0,0.43160037]
[1757368445775,0.27312001,112260.0,112250.0,0.57968037]
[1757368445971,0.27512001,112260.0,112250.0,0.57968037]
[1757368447552,0.27812001,112260.0,112250.0,0.57665037]
[1757368447774,0.27812001,112260.0,112250.0,0.57457037]
[1757368448718,0.27312001,112260.0,112250.0,0.57968037]
[1757368453343,0.27509001,112260.0,112250.0,0.57968037]
[1757368453682,0.27312001,112260.0,112250.0,0.57968037]
[1757368453890,0.27509001,112260.0,112250.0,0.57968037]
[1757368454092,0.27509001,112260.0,112250.0,0.57665037]
[1757368455787,0.27803001,112260.0,112250.0,0.57665037]
[1757368459658,0.27509001,112260.0,112250.0,0.57665037]
[1757368459951,0.27509001,112260.0,112250.0,0.57964037]
[1757368460771,0.27509001,112260.0,112250.0,0.57665037]
[1757368461584,0.27803001,112260.0,112250.0,0.57457037]
[1757368462648,0.27803001,112260.0,112250.0,0.57663037]
[1757368464701,0.27509001,112260.0,112250.0,0.57663037]
[1757368467016,0.27509001,112260.0,112250.0,0.57457037]
[1757368467251,0.27803001,112260.0,112250.0,0.57457037]
[1757368467906,0.36719932,112260.0,112250.0,0.57457037]
[1757368468532,0.27803001,112260.0,112250.0,0.57457037]
[1757368469280,0.27803001,112260.0,112250.0,0.51080161]
[1757368471803,0.27803001,112260.0,112250.0,0.36272161]
[1757368471940,0.27803001,112260.0,112250.0,0.51080161]
[1757368473084,0.27803001,112260.0,112250.0,0.36272161]
[1757368473266,0.27803001,112260.0,112250.0,0.51080161]
[1757368474693,0.27803001,112260.0,112250.0,0.51286161]
[1757368475114,0.27803001,112260.0,112250.0,0.36478161]
[1757368475293,0.27803001,112260.0,112250.0,0.51286161]
[1757368475511,0.27803001,112260.0,112250.0,0.36478161]
[1757368475713,0.27803001,112260.0,112250.0,0.51286161]
[1757368480447,0.27312001,112260.0,112250.0,0.51584161]
[1757368480971,0.27312001,112260.0,112250.0,0.57961037]
[1757368481170,0.09496217,112260.0,112250.0,0.57961037]
[1757368481392,0.09774588,112260.0,112250.0,0.57961037]
[1757368482253,0.09774588,112260.0,112250.0,0.51584161]
[1757368484487,0.09985588,112260.0,112250.0,0.51584161]
[1757368487652,0.09985588,112260.0,112250.0,0.51286161]
[1757368488069,0.27801372,112260.0,112250.0,0.51286161]
[1757368488281,0.67808863,112260.0,112250.0,0.36272161]
[1757368488462,0.67808863,112260.0,112250.0,0.51080161]
[1757368488804,0.27821001,112260.0,112250.0,0.51080161]
[1757368492296,0.27821001,112260.0,112250.0,0.36272161]
[1757368492497,0.27821001,112260.0,112250.0,0.51080161]
[1757368494047,0.67808863,112260.0,112250.0,0.51080161]
[1757368497801,0.67808863,112260.0,112250.0,0.51076161]
[1757368499034,0.67808863,112260.0,112250.0,0.36272161]
[1757368499241,0.67808863,112260.0,112250.0,0.51076161]
[1757368501637,0.67808863,112260.0,112250.0,0.36272161]
[1757368501843,0.67808863,112260.0,112250.0,0.51076161]
[1757368502994,0.67808863,112260.0,112250.0,0.51272161]
[1757368503472,0.67808863,112260.0,112250.0,0.51076161]
[1757368505100,0.27821001,112260.0,112250.0,0.36468161]
[1757368505302,0.67808863,112260.0,112250.0,0.51272161]
[1757368507236,0.67808863,112260.0,112250.0,0.36468161]
[1757368507453,0.67808863,112260.0,112250.0,0.51076161]
[1757368510610,0.67808863,112260.0,112250.0,0.36272161]
[1757368510810,0.67808863,112260.0,112250.0,0.51076161]
[1757368516288,0.09496217,112260.0,112250.0,0.51590161]
[1757368516512,0.09774588,112260.0,112250.0,0.51590161]
[1757368517214,0.09496217,112260.0,112250.0,0.51590161]
[1757368529782,0.10496217,112260.0,112250.0,0.51590161]
[1757368548363,0.10496217,112260.0,112250.0,0.51590161]
[1757368556490,0.10496217,112260.0,112250.0,0.36786161]
[1757368556694,0.10496217,112260.0,112250.0,0.51746161]
[1757368570859,0.10496217,112260.0,112250.0,0.36786161]
[1757368571091,0.10496217,112260.0,112250.0,0.51730161]
[1757368603837,0.10496217,112260.0,112250.0,0.36786161]
[1757368604043,0.10496217,112260.0,112250.0,0.51674161]
[1757368615787,0.10496217,112260.0,112250.0,0.36786161]